bitfinex/quotes_ETHUSD_20260107
["timestamp","ask_amount","ask_price","bid_price","bid_amount"]
[1767780922387,0.91905815,3207.0,3205.6,6.24107566]
[1767780924237,0.91905815,3207.0,3205.6,3.12153486]
[1767780924408,0.91905815,3206.8,3205.6,3.12153486]
[1767780926701,0.91905815,3206.8,3205.6,6.24107566]
[1767780927216,0.91905815,3206.8,3205.6,3.12153486]
[1767780928516,0.91905815,3206.8,3205.6,6.24107566]
[1767780930299,0.91905815,3206.8,3205.6,0.002]
[1767780930816,0.91905815,3206.8,3205.9,0.002]
[1767780931022,0.91905815,3206.6,3205.9,0.002]
[1767780931393,0.91905815,3206.6,3205.6,0.002]
[1767780943635,0.91905815,3206.6,3205.9,0.002]
[1767780943846,0.001,3206.3,3205.9,0.002]
[1767780944206,0.91137454,3206.3,3205.9,0.002]
[1767780948218,0.001,3206.3,3205.9,0.002]
[1767780954747,0.91037454,3206.6,3205.9,0.002]
[1767780955533,0.001,3206.0,3205.9,0.002]
[1767780955733,0.91037454,3206.8,3205.9,0.002]
[1767780963572,0.91037454,3206.8,3206.0,0.40277953]
[1767780963772,0.91037454,3206.8,3205.9,0.002]
[1767780966269,0.94611572,3207.3,3206.4,4.02579533]
[1767780966462,1.95047142,3207.5,3206.5,0.816]
[1767780966659,0.94611572,3207.4,3206.1,4.02579533]
[1767780966861,0.94611572,3207.4,3206.2,0.816]
[1767780967048,1.14116286,3207.4,3206.3,0.48417953]
[1767780967244,0.001,3206.5,3206.3,0.48417953]
[1767780967439,1.0043557,3207.5,3206.3,0.48417953]
[1767780967440,0.94611572,3207.2,3206.4,6.23752494]
[1767780967880,0.94611572,3207.2,3206.4,3.11876247]
[1767780968244,0.94611572,3207.2,3205.9,0.002]
[1767780968451,0.94611572,3207.2,3206.1,3.11899882]
[1767780968646,0.94611572,3207.0,3206.1,0.816]
[1767780968850,0.94611572,3206.8,3206.0,3.11914959]
[1767780969162,0.94611572,3206.8,3206.0,3.11907274]
[1767780969349,0.94611572,3206.8,3206.2,3.11888025]
[1767780969549,0.94611572,3207.0,3206.1,4.02579533]
[1767780969773,1.75311572,3207.4,3206.4,4.02579533]
[1767780969967,0.17531157,3207.3,3206.4,4.02579533]
[1767780970167,1.12142729,3207.3,3206.4,4.02579533]
[1767780970351,1.12142729,3207.3,3206.1,4.02579533]
[1767780972348,1.12142729,3207.3,3206.2,6.23791404]
[1767780973347,1.12142729,3207.3,3206.2,9.35687106]
[1767780973548,1.12142729,3207.3,3206.3,0.83269905]
[1767780974480,1.12142729,3207.3,3206.4,6.23752494]
[1767780974978,1.12142729,3207.3,3206.4,10.26332027]
[1767780975182,0.94611572,3207.3,3206.4,10.26332027]
[1767780976550,0.94611572,3207.3,3206.4,6.23752494]
[1767780976756,0.94611572,3207.3,3206.4,7.05352494]
[1767780979390,0.94711572,3207.0,3206.4,7.05352494]
[1767780980088,0.001,3207.0,3206.4,7.05352494]
[1767780981291,0.001,3207.0,3206.4,7.84234734]
[1767780981591,0.94611572,3207.6,3206.4,11.86814267]
[1767780981887,0.94611572,3207.6,3206.4,11.07932027]
[1767780983082,0.94611572,3208.0,3206.4,11.07932027]
[1767780983775,0.94611572,3208.0,3206.4,14.19808274]
[1767780983962,0.94611572,3208.0,3206.7,4.02579533]
[1767780985802,0.94611572,3208.0,3206.8,3.11837345]
[1767780985996,0.94611572,3207.8,3206.8,3.11837345]
[1767780988065,0.94611572,3207.8,3206.8,6.2367469]
[1767780988492,0.94611572,3207.8,3206.8,3.11837345]
[1767780989703,0.94611572,3207.8,3206.8,6.2367469]
[1767780991303,0.001,3207.5,3206.8,6.2367469]
[1767780991609,0.001,3207.5,3206.8,7.57505368]
[1767780992566,0.92061937,3207.5,3206.8,4.45668023]
[1767780992796,0.92061937,3207.5,3206.7,0.002]
[1767780992994,0.92061937,3207.5,3206.8,3.11836403]
[1767780993369,0.001,3207.5,3206.8,6.23673748]
[1767780994901,1.09493094,3207.9,3206.8,9.35511093]
[1767780995211,0.50001802,3208.6,3207.6,4.02579533]
[1767780995503,0.91961937,3208.5,3207.7,0.91961937]
[1767780996285,0.91961937,3208.9,3207.7,0.91961937]
[1767780997202,0.91961937,3208.9,3207.9,0.91961937]
[1767780999385,0.91961937,3208.9,3208.0,0.91961937]
[1767780999600,1.09228131,3208.8,3208.0,0.91961937]
[1767780999800,0.17266194,3208.8,3208.0,0.91961937]
[1767780999979,1.72661937,3209.1,3208.0,0.91961937]
[1767781000180,0.91961937,3209.0,3208.0,0.91961937]
[1767781000710,0.91961937,3209.0,3207.5,4.02579533]
[1767781000912,0.91961937,3209.0,3207.7,0.91961937]
[1767781001106,0.91961937,3209.0,3207.8,0.91961937]
[1767781001416,0.91961937,3208.8,3207.8,0.91961937]
[1767781002814,0.807,3209.1,3207.8,0.91961937]
[1767781002815,0.91961937,3209.0,3207.8,0.91961937]
[1767781003212,0.91961937,3209.3,3208.0,0.91961937]
[1767781003413,0.807,3209.2,3208.0,0.91961937]
[1767781003909,1.72661937,3209.2,3208.0,0.91961937]
[1767781004115,0.17266194,3209.1,3208.1,0.91961937]
[1767781005317,0.17266194,3209.1,3208.0,1.9340023]
[1767781005318,0.17266194,3209.1,3208.3,0.91961937]
[1767781006218,1.09228131,3209.1,3208.3,0.91961937]
[1767781006381,0.001,3208.7,3208.3,0.91961937]
[1767781007183,0.001,3208.7,3208.4,0.91961937]
[1767781008622,0.001,3208.7,3208.5,0.91961937]
[1767781015533,0.001,3208.7,3208.3,4.03652587]
[1767781016196,0.92061937,3208.7,3208.0,0.002]
[1767781018602,0.001,3208.4,3208.0,0.002]
[1767781020412,0.91961937,3208.5,3208.0,0.002]
[1767781021007,0.807,3209.2,3208.0,0.002]
[1767781021206,0.91961937,3209.0,3208.0,0.95279143]
[1767781021853,0.91961937,3209.0,3208.0,0.002]
[1767781021854,0.95305322,3208.9,3208.0,0.002]
[1767781022619,0.95305322,3208.9,3208.0,3.119194]
[1767781023542,0.95305322,3208.9,3208.0,0.002]
[1767781025509,0.95305322,3208.9,3208.0,0.92161937]
[1767781026040,0.95305322,3208.9,3208.0,4.03877611]
[1767781026907,0.95305322,3208.9,3208.1,0.91961937]
[1767781027128,0.92352786,3209.7,3208.3,0.91961937]
[1767781028238,0.92352786,3209.7,3208.5,0.97493771]
[1767781030113,0.92352786,3209.7,3208.6,6.23324814]
[1767781030314,0.92352786,3209.7,3208.8,0.97493771]
[1767781030937,0.001,3209.4,3208.8,0.97493771]
[1767781031138,0.92352786,3209.7,3209.1,0.97493771]
[1767781031730,0.92352786,3210.4,3209.1,0.97493771]
[1767781031932,0.92352786,3210.2,3209.1,0.97493771]
[1767781032228,0.92352786,3210.0,3209.1,0.97493771]
[1767781034028,0.92352786,3210.0,3209.2,0.97493771]
[1767781034241,0.92352786,3210.0,3209.1,3.11611113]
[1767781034452,0.92352786,3210.0,3209.0,3.11617221]
[1767781034654,0.92352786,3210.0,3209.1,3.11611764]
[1767781034842,0.92352786,3210.0,3209.1,6.8555004]
[1767781035036,0.92352786,3210.0,3209.2,0.97493771]
[1767781035239,0.92352786,3210.0,3209.2,0.97293772]
[1767781036050,0.92352786,3210.0,3209.3,3.11594428]
[1767781036246,0.92352786,3210.4,3209.4,0.97493771]
[1767781037242,0.92352786,3210.3,3209.4,0.97493771]
[1767781037648,0.92352786,3210.3,3209.2,3.11600052]
[1767781038342,0.92352786,3210.3,3209.2,4.09093823]
[1767781038541,0.92352786,3210.3,3209.3,0.97493771]
[1767781040761,0.92352786,3210.3,3209.4,0.97493771]
[1767781040937,0.92352786,3210.3,3209.2,4.09092223]
[1767781041139,0.92352786,3210.3,3209.3,0.97493771]
[1767781041140,0.92352786,3210.2,3209.3,0.97493771]
[1767781041462,0.92352786,3210.2,3209.3,4.09087025]
[1767781042039,0.92352786,3210.2,3209.2,3.11603429]
[1767781042449,0.92352786,3210.2,3209.3,3.11591464]
[1767781042848,0.92352786,3210.2,3209.2,4.09097909]
[1767781043148,0.92452786,3210.0,3209.2,4.89318889]
[1767781044147,0.92452786,3210.0,3209.2,8.00923027]
[1767781044373,0.92452786,3210.0,3209.2,7.03429256]
[1767781045048,0.92452786,3210.0,3209.2,3.91825118]
[1767781047572,0.92452786,3210.0,3209.4,0.97493771]
[1767781047872,0.92452786,3210.0,3209.3,3.11588133]
[1767781048441,0.92452786,3210.0,3209.3,4.09081904]
[1767781048743,0.92452786,3210.0,3209.4,0.97493771]
[1767781050173,0.92452786,3210.0,3209.2,3.11594974]
[1767781050174,0.92452786,3210.0,3209.2,4.09088745]
[1767781050341,0.92452786,3210.0,3209.2,3.11594974]
[1767781051931,0.92452786,3210.0,3209.0,6.23238649]
[1767781052174,0.92452786,3210.0,3209.1,0.80223242]
[1767781054371,0.92452786,3210.0,3209.2,3.11604138]
[1767781054874,0.92452786,3210.0,3209.1,3.91834306]
[1767781055075,0.92452786,3210.0,3209.1,0.80223242]
[1767781055474,0.90248912,3209.9,3208.7,3.9]
[1767781055696,0.90248912,3209.9,3208.3,4.02557928]
[1767781055697,6.23153814,3210.0,3208.3,0.002]
[1767781055698,0.90248912,3209.7,3208.3,0.002]
[1767781055860,0.90248912,3209.5,3208.3,0.002]
[1767781056187,0.90248912,3209.3,3208.0,0.90868046]
[1767781056376,0.90248912,3209.1,3208.1,0.90668046]
[1767781058905,0.90248912,3209.1,3208.2,0.90668046]
[1767781060300,0.38603388,3210.5,3208.3,0.90668046]
[1767781060593,0.90248912,3209.8,3208.3,0.93784961]
[1767781060793,1.07343803,3209.7,3208.5,0.90668046]
[1767781061374,1.07343803,3209.7,3208.2,6.23397973]
[1767781061375,1.07343803,3209.7,3208.3,0.90668046]
[1767781062310,0.90248912,3209.5,3208.5,0.90668046]
[1767781065902,0.90248912,3209.5,3208.6,0.90668046]
[1767781066284,0.001,3209.4,3208.6,0.90668046]
[1767781067404,0.001,3209.4,3208.7,0.90668046]
[1767781068579,0.001,3209.4,3208.8,4.02311027]
[1767781068882,0.001,3209.4,3208.8,1.62376766]
[1767781069077,0.001,3209.4,3208.9,0.90668046]
[1767781069806,0.90248912,3209.6,3208.9,0.90668046]
[1767781070009,0.90348912,3210.0,3208.9,0.90668046]
[1767781070307,0.90348912,3210.0,3209.1,0.90668046]
[1767781071314,0.001,3210.0,3209.1,0.90668046]
[1767781071617,0.90248912,3209.9,3209.1,0.90668046]
[1767781072908,0.90248912,3209.9,3208.8,0.90668046]
[1767781073074,0.90248912,3209.9,3208.9,4.02295906]
[1767781073279,0.90248912,3209.9,3209.1,0.90668046]
[1767781073806,0.90248912,3209.9,3208.9,3.1162786]
[1767781074019,0.90248912,3209.9,3208.9,4.02295906]
[1767781075389,0.90248912,3209.9,3208.9,4.02299455]
[1767781076619,0.90248912,3209.9,3209.0,0.90668046]
[1767781076942,0.90248912,3209.9,3209.1,0.90668046]
[1767781077792,0.90248912,3209.9,3209.2,0.90668046]
[1767781077981,0.001,3210.0,3209.2,0.90868046]
[1767781078194,0.001,3209.7,3209.2,0.90868046]
[1767781078399,0.001,3210.0,3209.3,1.30916025]
[1767781078613,0.90348912,3210.0,3209.3,1.30916025]
[1767781079026,0.001,3210.0,3209.4,0.90668046]
[1767781079918,0.90348912,3210.0,3209.4,0.90668046]
[1767781080316,0.001,3210.0,3209.4,0.90668046]
[1767781080917,0.90348912,3210.0,3209.4,0.40247112]
[1767781081229,0.90348912,3210.0,3209.2,0.90868046]
[1767781082503,0.90348912,3210.0,3209.2,4.0246834]
[1767781083003,0.90348912,3210.0,3209.2,0.90868046]
[1767781083902,0.90348912,3210.0,3209.3,0.98629811]
[1767781085839,0.90348912,3210.0,3209.2,0.002]
[1767781086146,0.98509057,3209.9,3209.2,0.002]
[1767781086440,0.98509057,3209.7,3208.9,0.002]
[1767781088235,0.99083038,3209.6,3208.9,0.002]
[1767781090159,0.99083038,3209.5,3208.9,0.002]
[1767781097145,0.99083038,3209.5,3208.5,0.93730571]
[1767781097335,0.99083038,3209.3,3208.6,0.93730571]
[1767781097534,1.79783038,3209.3,3208.6,0.93730571]
[1767781099448,1.79783038,3209.3,3208.6,4.05391729]
[1767781100569,0.001,3209.7,3208.7,0.93730571]
[1767781100570,0.808,3209.7,3208.7,0.93730571]
[1767781101166,1.79883038,3209.7,3208.7,0.93730571]
[1767781101359,0.17988304,3209.6,3208.7,0.93730571]
[1767781101762,0.17988304,3209.6,3209.0,0.002]
[1767781102862,0.17988304,3209.6,3209.0,0.93930571]
[1767781103071,0.001,3209.7,3209.0,0.93930571]
[1767781103369,0.99183038,3209.7,3209.0,0.93930571]
[1767781104175,0.99183038,3209.7,3209.0,0.002]
[1767781104350,0.99083038,3209.6,3209.0,0.002]
[1767781104745,0.001,3209.7,3208.6,0.002]
[1767781104746,0.99083038,3209.4,3208.6,0.002]
[1767781104957,0.99083038,3209.2,3208.6,0.002]
[1767781108159,0.99083038,3209.1,3208.6,0.002]
[1767781113991,0.807,3209.3,3208.6,0.002]
[1767781113992,1.80610198,3209.3,3208.6,0.002]
[1767781114391,0.99910198,3209.2,3208.6,0.002]
[1767781115700,0.99910198,3209.2,3208.9,0.002]
[1767781115900,0.807,3209.3,3208.9,0.002]
[1767781115901,1.17971218,3209.1,3208.9,0.002]
[1767781119021,0.1806102,3209.1,3208.9,0.002]
[1767781119227,0.807,3209.3,3208.9,0.002]
[1767781120339,0.001,3209.4,3208.9,0.002]
[1767781120632,1.00010198,3209.4,3208.9,0.002]
[1767781123643,1.00010198,3209.4,3208.9,1e-08]
[1767781124443,10.15,3210.2,3208.9,0.97797977]
[1767781124444,0.99910198,3209.7,3208.9,0.97797977]
[1767781124743,0.99910198,3209.7,3209.0,0.97797976]
[1767781125333,3.11464307,3210.7,3208.9,0.49951196]
[1767781125334,0.99910198,3210.1,3209.2,0.97797976]
[1767781125514,1.80610198,3210.1,3209.2,0.97797976]
[1767781125714,0.99910198,3210.0,3209.2,0.97797976]
[1767781126414,0.99910198,3210.0,3209.2,4.09398434]
[1767781126945,0.99910198,3210.6,3209.3,0.97797976]
[1767781127168,0.99910198,3210.3,3209.3,0.97797976]
[1767781127671,0.99910198,3210.3,3209.5,0.97797976]
[1767781128251,0.99910198,3210.3,3209.6,0.97797976]
[1767781129172,0.001,3210.0,3209.6,0.97797976]
[1767781130180,0.99910198,3210.8,3210.0,0.97797976]
[1767781130376,0.99910198,3210.7,3209.9,0.97797976]
[1767781130549,0.99910198,3210.5,3209.9,0.97797976]
[1767781130898,0.99910198,3210.5,3209.4,0.91861938]
[1767781131441,0.99910198,3210.5,3209.6,3.11559162]
[1767781131869,0.99910198,3210.5,3209.4,4.03445555]
[1767781131870,0.99910198,3210.5,3209.5,0.91861938]
[1767781132076,0.99910198,3210.5,3209.5,4.03427493]
[1767781132246,1.22084832,3210.5,3209.5,4.03427493]
[1767781133376,1.22084832,3210.5,3209.6,0.91861938]
[1767781133556,0.99910198,3210.4,3209.6,0.91861938]
[1767781134966,0.99910198,3210.4,3209.4,0.91861938]
[1767781134967,0.99910198,3210.3,3209.4,0.91861938]
[1767781135494,0.99910198,3210.3,3209.5,4.0343475]
[1767781135992,0.99910198,3210.3,3209.5,0.91861938]
[1767781136187,0.99910198,3210.3,3209.2,0.91861938]
[1767781136387,1.20188681,3210.3,3209.4,3.11576612]
[1767781136566,1.20188681,3210.3,3209.4,4.0343855]
[1767781139597,1.20188681,3210.3,3209.5,0.91861938]
[1767781140796,1.20188681,3210.3,3209.7,0.002]
[1767781141171,1.00010198,3210.2,3209.7,0.002]
[1767781141372,1.43187969,3210.2,3209.7,0.002]
[1767781142100,1.43187969,3210.2,3208.5,3.902]
[1767781142101,0.9265052,3210.1,3208.5,3.902]
[1767781142314,0.9265052,3209.9,3208.5,0.002]
[1767781142497,0.9265052,3209.9,3208.6,0.92261938]
[1767781143016,0.9265052,3209.9,3208.6,3.11860873]
[1767781143694,0.9265052,3209.7,3208.7,0.92061938]
[1767781144786,0.9265052,3209.7,3208.6,0.002]
[1767781144986,0.9265052,3209.5,3208.6,0.002]
[1767781145286,0.9265052,3209.3,3208.6,0.002]
[1767781148491,0.9265052,3209.3,3208.6,0.92261938]
[1767781151944,0.808,3209.3,3208.7,0.92061938]
[1767781153036,0.99134263,3209.5,3208.7,0.92061938]
[1767781153220,0.808,3209.4,3208.7,0.92061938]
[1767781153420,0.17993426,3209.3,3208.7,0.92061938]
[1767781153661,0.13748726,3209.3,3208.9,0.002]
[1767781153963,0.001,3209.0,3208.9,0.002]
[1767781173380,0.98203584,3209.0,3208.6,0.002]
[1767781173692,0.98203584,3209.0,3208.0,0.92261938]
[1767781174099,0.98103584,3208.9,3208.0,0.92261938]
[1767781174299,1.39086402,3208.8,3208.0,0.92261938]
[1767781174613,1.39086402,3208.8,3208.0,7.15699114]
[1767781174800,0.98103584,3208.8,3208.1,0.92061938]
[1767781174974,0.001,3209.0,3208.1,0.92061938]
[1767781175180,3.11389737,3211.5,3208.1,0.92061938]
[1767781175181,0.98103584,3209.6,3208.8,0.92061938]
[1767781175419,0.98103584,3209.6,3208.1,0.816]
[1767781175420,0.98103584,3209.6,3208.9,0.92061938]
[1767781176600,0.98103584,3209.6,3208.2,3.14814352]
[1767781176601,0.98103584,3209.6,3208.4,0.92061938]
[1767781176808,0.98103584,3209.4,3208.7,3.1164604]
[1767781177433,0.98103584,3209.4,3208.6,4.03723841]
[1767781177804,0.98103584,3209.4,3207.9,3.1172415]
[1767781177805,0.98103584,3209.4,3208.4,0.92061938]
[1767781178021,0.98103584,3209.4,3208.5,3.11671154]
[1767781178206,0.98103584,3209.4,3208.4,0.92061938]
[1767781178397,0.98103584,3209.4,3208.4,4.03740165]
[1767781178398,4.09691973,3209.4,3208.4,4.03740165]
[1767781178604,0.98103584,3209.2,3208.4,4.03740165]
[1767781179521,0.98103584,3209.2,3208.9,0.002]
[1767781185721,0.001,3209.3,3208.9,0.92261938]
[1767781186748,0.001,3209.3,3208.9,0.002]
[1767781186920,0.001,3209.3,3208.9,0.92261938]
[1767781187125,0.001,3209.3,3209.0,0.92061938]
[1767781187918,0.98103584,3209.8,3209.0,0.92061938]
[1767781189023,0.98103584,3209.8,3209.0,4.03677378]
[1767781190247,0.98103584,3209.8,3209.1,0.92061938]
[1767781191332,0.001,3209.3,3209.1,0.92061938]
[1767781191631,0.001,3209.3,3209.0,3.1161544]
[1767781191832,0.001,3209.3,3209.0,3.9032273]
[1767781192876,0.001,3209.3,3209.0,4.82384668]
[1767781193428,0.001,3209.3,3209.0,0.7870729]
[1767781193645,0.98203584,3209.3,3208.9,0.002]
[1767781195547,0.98203584,3209.3,3208.0,0.002]
[1767781195548,0.98103584,3209.2,3208.0,0.002]
[1767781198743,0.98103584,3208.9,3208.0,0.002]
[1767781198944,0.98103584,3208.7,3208.0,0.002]
[1767781200254,0.808,3208.6,3208.0,0.92261938]
[1767781200659,0.808,3208.6,3208.0,4.03975659]
[1767781201358,0.001,3209.3,3208.0,4.03975659]
[1767781201359,0.98203584,3209.3,3208.3,0.92061938]
[1767781201557,0.98203584,3209.3,3208.6,0.92061938]
[1767781201558,0.001,3209.3,3208.6,0.92061938]
[1767781202545,0.97768762,3209.8,3208.8,4.93830571]
[1767781202744,0.97768762,3209.8,3208.4,1.31021921]
[1767781202745,4.09315134,3209.8,3208.9,0.91673303]
[1767781202971,4.09315026,3209.8,3209.0,0.91673303]
[1767781203136,0.001,3209.5,3209.0,0.91673303]
[1767781203445,0.001,3209.5,3209.0,1.3200382]
[1767781205842,0.97686089,3209.5,3208.7,0.03116526]
[1767781206071,0.97686089,3209.5,3208.6,0.91617395]
[1767781206072,0.97686089,3209.5,3208.8,3.11636936]
[1767781206267,0.97686089,3209.5,3208.6,0.91617395]
[1767781206474,0.97686089,3209.5,3208.7,0.91617395]
[1767781206767,0.97686089,3209.5,3208.8,3.1164046]
[1767781206971,0.97686089,3209.5,3208.8,4.03257855]
[1767781207174,0.97686089,3209.5,3208.8,4.74749812]
[1767781211178,0.97686089,3209.5,3208.8,0.71491957]
[1767781211475,0.97686089,3209.5,3208.4,4.51579189]
[1767781211476,0.97686089,3209.5,3208.4,1.41039316]
[1767781211662,0.97586089,3209.4,3208.4,3.11681662]
[1767781211864,0.97586089,3209.4,3208.5,3.1478809]
[1767781212070,0.97586089,3209.4,3208.4,3.11678738]
[1767781212071,0.97586089,3209.3,3208.4,3.11678738]
[1767781212570,0.97586089,3209.3,3208.5,3.1167201]
[1767781212884,0.97586089,3209.3,3208.4,3.11679174]
[1767781213070,0.97586089,3209.3,3208.5,3.11671354]
[1767781214887,0.97586089,3209.3,3208.8,0.002]
[1767781217894,0.97586089,3210.0,3209.0,0.91617395]
[1767781219058,0.97586089,3209.9,3209.0,1.73217395]
[1767781219258,1.38497459,3209.8,3209.0,1.73217395]
[1767781219462,0.97586089,3209.8,3209.1,3.11613848]
[1767781220081,0.97586089,3209.8,3209.0,4.84837873]
[1767781224109,0.97586089,3209.8,3209.0,4.03237873]
[1767781227809,0.97586089,3209.8,3209.3,0.002]
[1767781227979,0.001,3209.5,3209.3,0.002]
[1767781236777,0.001,3209.5,3209.3,0.09547799]
[1767781238404,0.001,3209.5,3209.3,0.50868711]
[1767781244722,0.001,3209.5,3209.3,0.09547799]
[1767781258739,0.001,3209.5,3209.3,0.002]
[1767781263043,0.001,3209.5,3209.3,1e-08]
[1767781274536,0.94689111,3209.7,3209.3,1e-08]
[1767781283262,4.0624532,3209.7,3209.3,1e-08]
[1767781283632,0.94689111,3209.7,3209.3,1e-08]
[1767781291169,4.06245094,3209.7,3209.3,1e-08]
[1767781291370,0.94689111,3209.7,3209.3,1e-08]
[1767781299179,3.11529601,3210.0,3209.3,1e-08]
[1767781299389,0.95714305,3209.9,3209.3,1e-08]
[1767781304058,0.95714305,3209.8,3209.3,1e-08]
[1767781304769,0.95714305,3209.7,3209.3,1e-08]
[1767781304987,0.95714305,3209.6,3209.3,1e-08]
[1767781305490,0.95714305,3210.1,3209.3,1e-08]
[1767781306769,0.95714305,3210.0,3209.3,1e-08]
[1767781308980,3.11536184,3209.9,3209.3,1e-08]
[1767781309187,0.95714305,3209.8,3209.3,1e-08]
[1767781309892,0.95714305,3209.8,3209.3,0.4036758]
[1767781310893,0.808,3210.6,3209.3,0.4036758]
[1767781310894,0.95714305,3210.5,3209.3,0.4036758]
[1767781311075,0.95714305,3210.4,3209.4,3.11584719]
[1767781312095,0.001,3209.7,3209.4,3.11584719]
[1767781312402,0.001,3209.7,3209.4,4.03646657]
[1767781312910,0.001,3209.7,3209.3,3.11589966]
[1767781313404,0.95714305,3210.7,3209.4,0.95177785]
[1767781313571,0.95714305,3210.7,3209.3,6.23184394]
[1767781313572,0.95714305,3210.5,3209.6,0.92061938]
[1767781314925,0.95714305,3210.4,3209.6,4.03619161]
[1767781318302,0.95714305,3210.3,3209.6,4.03619161]
[1767781320466,0.95714305,3210.5,3209.7,0.92061938]
[1767781320670,0.95714305,3210.5,3209.8,1.10518447]
[1767781321684,0.971493,3210.4,3209.8,1.10518447]
[1767781322090,0.971493,3210.4,3209.9,0.816]
[1767781323587,0.971493,3210.2,3209.3,1e-08]
[1767781323792,6.22994734,3210.3,3209.0,0.002]
[1767781323793,0.971493,3209.7,3209.0,0.002]
[1767781324106,9.34492101,3210.3,3209.4,0.92061938]
[1767781324107,0.971493,3210.0,3209.4,0.92061938]
[1767781325027,0.971493,3210.0,3209.2,0.92061938]
[1767781325173,0.971493,3210.0,3209.3,0.815]
[1767781325370,0.971493,3210.0,3209.0,0.002]
[1767781325574,0.98196793,3209.6,3209.0,0.002]
[1767781327672,0.98196793,3209.5,3209.0,0.002]
[1767781328816,0.98196793,3209.5,3208.8,0.002]
[1767781329929,0.98196793,3209.3,3208.8,0.002]
[1767781332202,0.98196793,3209.1,3208.8,0.002]
[1767781332416,0.98196793,3208.9,3208.8,0.002]
[1767781337595,0.98196793,3209.1,3208.8,0.002]
[1767781347257,3.11697845,3209.3,3208.8,0.002]
[1767781347258,0.98196793,3209.2,3208.8,0.002]
[1767781353362,4.08009315,3209.7,3209.0,0.90191121]
[1767781353557,4.07989802,3209.9,3209.0,0.90191121]
[1767781354164,0.96453618,3209.8,3209.0,4.01813338]
[1767781354465,0.96453618,3209.8,3209.1,0.90191121]
[1767781357162,0.96453618,3209.7,3209.1,0.90191121]
[1767781359363,4.08016683,3209.7,3209.1,0.90191121]
[1767781359860,0.001,3209.5,3209.1,0.90191121]
[1767781360452,0.001,3209.5,3208.9,3.11627408]
[1767781360643,0.001,3209.5,3208.9,4.72326384]
[1767781361333,0.001,3209.5,3208.9,1.60698976]
[1767781361659,0.001,3209.5,3208.9,2.42298976]
[1767781361660,0.96553618,3209.5,3208.9,2.42298976]
[1767781362177,0.96453618,3209.3,3208.6,3.9]
[1767781363353,0.96453618,3209.3,3208.5,0.002]
[1767781363727,0.96453618,3209.1,3208.5,0.002]
[1767781364758,0.96453618,3209.1,3208.5,1e-08]
[1767781365765,4.08073433,3209.1,3208.5,1e-08]
[1767781365973,1.37260961,3209.0,3208.5,1e-08]
[1767781366276,0.96453618,3208.9,3208.3,0.002]
[1767781367845,0.96453618,3208.7,3208.3,0.002]
[1767781370365,0.96453618,3208.5,3208.3,0.002]
[1767781370570,3.11662407,3208.6,3208.3,0.002]
[1767781370972,0.96453618,3208.7,3208.3,0.002]
[1767781371145,4.08108154,3208.7,3208.6,0.002]
[1767781371363,0.96453618,3208.6,3208.0,0.002]
[1767781372878,4.08125738,3208.5,3208.0,0.002]
[1767781375380,4.08131379,3208.5,3208.0,0.002]
[1767781378476,4.08131379,3208.5,3207.7,3.93548983]
[1767781378477,0.96453618,3208.4,3207.7,0.002]
[1767781378675,3.11677761,3208.5,3207.3,0.002]
[1767781378676,0.96453618,3208.2,3207.3,0.002]
[1767781378882,0.96453618,3208.2,3207.3,0.90391121]
[1767781379187,0.96453618,3208.0,3207.3,0.90391121]
[1767781381476,6.2346083,3207.9,3207.3,0.90391121]
[1767781381679,7.20838314,3207.9,3207.3,0.90391121]
[1767781381850,7.20838314,3207.9,3207.2,0.002]
[1767781381851,0.97377484,3207.8,3207.2,0.002]
[1767781382184,0.97377484,3207.6,3207.2,0.002]
[1767781383373,3.83837658,3207.7,3207.2,0.002]
[1767781383549,0.97377484,3207.6,3207.0,0.91983189]
[1767781383751,3.83837658,3207.7,3207.4,0.002]
[1767781384854,7.92968969,3207.7,3207.4,0.002]
[1767781385100,0.79296897,3207.6,3207.4,0.002]
[1767781385495,3.1176929,3207.5,3207.4,0.002]
[1767781385855,3.91060438,3207.6,3207.4,0.002]
[1767781386769,0.79296897,3207.6,3207.4,0.002]
[1767781386971,4.09128285,3207.7,3207.4,0.002]
[1767781388062,0.97377484,3207.7,3207.4,0.002]
[1767781388262,4.09131864,3207.7,3207.4,0.002]
[1767781389589,0.91406766,3207.9,3207.4,0.002]
[1767781390030,0.91406766,3208.1,3207.4,0.002]
[1767781390562,0.91406766,3208.1,3207.4,0.92261938]
[1767781391886,0.91406766,3208.1,3207.4,0.95379728]
[1767781392091,6.23469369,3208.4,3207.5,0.92061938]
[1767781392092,0.91506766,3208.4,3207.5,0.92061938]
[1767781392289,0.91506766,3208.4,3207.6,0.92061938]
[1767781392893,3.11697992,3208.3,3207.6,0.92061938]
[1767781393075,0.001,3208.4,3207.8,0.92061938]
[1767781395086,0.001,3208.4,3207.9,0.92061938]
[1767781395675,0.001,3208.4,3208.0,0.816]
[1767781396174,0.001,3208.1,3208.0,1.73661938]
[1767781396396,0.001,3208.4,3208.1,0.92061938]
[1767781403679,0.001,3208.4,3208.1,0.91861939]
[1767781404678,3.11644097,3208.8,3208.1,0.91861939]
[1767781404908,3.11633269,3208.9,3208.1,0.91861939]
[1767781405200,4.74506538,3208.9,3208.1,1.73461939]
[1767781405392,3.11627676,3209.0,3208.2,0.91861939]
[1767781406805,4.03001194,3209.3,3208.4,0.91861939]
[1767781407514,0.91406766,3209.2,3208.4,0.91861939]
[1767781407682,0.001,3208.6,3208.4,0.91861939]
[1767781407882,0.91406766,3209.2,3208.4,0.91861939]
[1767781409213,7.1462576,3209.2,3208.4,1.633873]
[1767781409524,0.91406766,3209.1,3208.4,1.633873]
[1767781409925,0.91406766,3209.1,3208.5,0.91861939]
[1767781411824,3.11623558,3209.0,3208.5,0.91861939]
[1767781414921,4.05743873,3209.0,3208.2,4.81861939]
[1767781415298,0.94120315,3208.9,3208.2,3.9]
[1767781415496,0.94120315,3208.9,3207.8,0.91861939]
[1767781415723,0.94120315,3208.9,3207.9,0.816]
[1767781416021,0.94120315,3208.7,3207.9,0.816]
[1767781416527,0.94120315,3208.7,3207.8,0.816]
[1767781416694,0.71740628,3208.6,3207.8,0.816]
[1767781416892,0.94120315,3208.5,3207.6,0.816]
[1767781419133,0.71740628,3208.6,3207.4,4.03835856]
[1767781419134,0.94120315,3208.3,3207.4,0.92061939]
[1767781419626,0.94120315,3208.3,3207.5,4.03630415]
[1767781419822,0.94120315,3208.3,3207.6,0.91861939]